[Event "*** Titled Tuesday Blitz"]
[Site "Chess.com"]
[Date "2020.05.05"]
[Round "10"]
[White "ilya261991"]
[Black "ChelsieMonica"]
[Result "0-1"]
[WhiteElo "2493"]
[BlackElo "2364"]
[TimeControl "180+1"]
[EndTime "11:57:39 PDT"]
[Termination "ChelsieMonica won by resignation"]

1. c4 {[%clk 0:02:41.9]} 1... Nf6 {[%clk 0:02:59.1]} 2. Nc3 {[%clk 0:02:38.2]}
2... e5 {[%clk 0:02:57.4]} 3. d3 {[%clk 0:02:37.6]} 3... Bb4 {[%clk 0:02:57.3]}
4. Bd2 {[%clk 0:02:36.5]} 4... O-O {[%clk 0:02:56.5]} 5. g3 {[%clk 0:02:36.6]}
5... c6 {[%clk 0:02:56.4]} 6. Bg2 {[%clk 0:02:33.7]} 6... d6 {[%clk 0:02:56.7]}
7. a3 {[%clk 0:02:33]} 7... Ba5 {[%clk 0:02:55.3]} 8. e3 {[%clk 0:02:32.9]} 8...
Bg4 {[%clk 0:02:53.8]} 9. Nge2 {[%clk 0:02:29.4]} 9... Nbd7 {[%clk 0:02:42.2]}
10. O-O {[%clk 0:02:27.7]} 10... Bc7 {[%clk 0:02:38.3]} 11. Qc2 {[%clk
0:02:25.5]} 11... Rc8 {[%clk 0:02:35.6]} 12. h3 {[%clk 0:02:21.9]} 12... Bh5
{[%clk 0:02:32]} 13. b4 {[%clk 0:02:14.3]} 13... Bb8 {[%clk 0:02:30.2]} 14. b5
{[%clk 0:02:04.3]} 14... Bg6 {[%clk 0:02:24.2]} 15. e4 {[%clk 0:01:59.2]} 15...
cxb5 {[%clk 0:02:19.3]} 16. Nxb5 {[%clk 0:01:56.1]} 16... a6 {[%clk 0:02:18.5]}
17. Nbc3 {[%clk 0:01:53.5]} 17... d5 {[%clk 0:02:16.7]} 18. exd5 {[%clk
0:01:47.6]} 18... Rxc4 {[%clk 0:02:13.3]} 19. Rab1 {[%clk 0:01:07.7]} 19... b5
{[%clk 0:02:11]} 20. Rb4 {[%clk 0:01:04.6]} 20... Bd6 {[%clk 0:02:00.6]} 21.
Rxc4 {[%clk 0:00:59.3]} 21... bxc4 {[%clk 0:02:00]} 22. Ne4 {[%clk 0:00:59.7]}
22... cxd3 {[%clk 0:01:55.9]} 23. Qxd3 {[%clk 0:01:00.6]} 23... Nxe4 {[%clk
0:01:55.4]} 24. Bxe4 {[%clk 0:00:57.2]} 24... Nc5 {[%clk 0:01:53.7]} 25. Bxg6
{[%clk 0:00:57.1]} 25... Nxd3 {[%clk 0:01:53.5]} 26. Bxd3 {[%clk 0:00:58]} 26...
f5 {[%clk 0:01:53.2]} 27. Nc3 {[%clk 0:00:54.9]} 27... e4 {[%clk 0:01:47.6]} 28.
Bxa6 {[%clk 0:00:52]} 28... Qa5 {[%clk 0:01:44.9]} 29. Bb7 {[%clk 0:00:43]}
29... e3 {[%clk 0:01:33.1]} 30. fxe3 {[%clk 0:00:39.7]} 30... Qxa3 {[%clk
0:01:27.6]} 31. Kg2 {[%clk 0:00:20]} 31... Qb2 {[%clk 0:01:26.4]} 0-1

[Event "*** Titled Tuesday Blitz"]
[Site "Chess.com"]
[Date "2020.05.05"]
[Round "10"]
[White "Happy1712Drummer"]
[Black "Cocaino74"]
[Result "0-1"]
[WhiteElo "2478"]
[BlackElo "2362"]
[TimeControl "180+1"]
[EndTime "11:57:39 PDT"]
[Termination "Cocaino74 won on time"]

1. d4 {[%clk 0:02:59.3]} 1... d5 {[%clk 0:02:58.1]} 2. Nf3 {[%clk 0:02:57.4]}
2... c5 {[%clk 0:02:50.4]} 3. c4 {[%clk 0:02:53.2]} 3... dxc4 {[%clk 0:02:48.6]}
4. d5 {[%clk 0:02:49.9]} 4... Nf6 {[%clk 0:02:44.6]} 5. Nc3 {[%clk 0:02:49.4]}
5... Bf5 {[%clk 0:02:21.4]} 6. Ne5 {[%clk 0:02:06.7]} 6... e6 {[%clk 0:02:07.5]}
7. e4 {[%clk 0:01:55.6]} 7... Nxe4 {[%clk 0:02:02.1]} 8. Nxe4 {[%clk 0:01:51.1]}
8... Bxe4 {[%clk 0:02:01.4]} 9. Qa4+ {[%clk 0:01:48.6]} 9... Nd7 {[%clk
0:01:57.9]} 10. dxe6 {[%clk 0:01:46.8]} 10... fxe6 {[%clk 0:01:50.4]} 11. Bxc4
{[%clk 0:01:46.6]} 11... Bd6 {[%clk 0:01:36]} 12. Bxe6 {[%clk 0:01:18.1]} 12...
Bxe5 {[%clk 0:01:15.5]} 13. Qxe4 {[%clk 0:01:16.4]} 13... Qe7 {[%clk 0:01:07.5]}
14. Bxd7+ {[%clk 0:00:46.4]} 14... Kxd7 {[%clk 0:01:08.4]} 15. Be3 {[%clk
0:00:43.1]} 15... Bc3+ {[%clk 0:01:06.8]} 0-1

[Event "*** Titled Tuesday Blitz"]
[Site "Chess.com"]
[Date "2020.05.05"]
[Round "10"]
[White "Angry_Twin"]
[Black "Saxar85"]
[Result "1/2-1/2"]
[WhiteElo "2818"]
[BlackElo "2643"]
[TimeControl "180+1"]
[EndTime "11:58:01 PDT"]
[Termination "Game drawn by repetition"]

1. e4 {[%clk 0:03:00.9]} 1... e5 {[%clk 0:02:57.1]} 2. Nf3 {[%clk 0:03:00.8]}
2... Nc6 {[%clk 0:02:56.8]} 3. Bb5 {[%clk 0:03:01.3]} 3... a6 {[%clk 0:02:56]}
4. Ba4 {[%clk 0:03:01.5]} 4... Nf6 {[%clk 0:02:54]} 5. O-O {[%clk 0:03:01.5]}
5... Be7 {[%clk 0:02:50.3]} 6. d3 {[%clk 0:03:00.6]} 6... d6 {[%clk 0:02:48.9]}
7. Bb3 {[%clk 0:03:00.7]} 7... O-O {[%clk 0:02:44.8]} 8. c3 {[%clk 0:02:56.3]}
8... b5 {[%clk 0:02:39.6]} 9. Re1 {[%clk 0:02:54.9]} 9... Na5 {[%clk 0:02:36.6]}
10. Bc2 {[%clk 0:02:55.2]} 10... c5 {[%clk 0:02:36.8]} 11. Nbd2 {[%clk
0:02:55.8]} 11... Re8 {[%clk 0:02:34.5]} 12. h3 {[%clk 0:02:55.9]} 12... Bb7
{[%clk 0:02:32.6]} 13. Nf1 {[%clk 0:02:55]} 13... Bf8 {[%clk 0:02:32.3]} 14. Ng3
{[%clk 0:02:54.3]} 14... h6 {[%clk 0:02:31.4]} 15. Be3 {[%clk 0:02:50.1]} 15...
d5 {[%clk 0:02:28]} 16. Qe2 {[%clk 0:02:42.4]} 16... d4 {[%clk 0:02:24]} 17. Bd2
{[%clk 0:02:42.2]} 17... Nc6 {[%clk 0:02:21.5]} 18. a3 {[%clk 0:02:36.8]} 18...
Rc8 {[%clk 0:02:07.2]} 19. Rad1 {[%clk 0:02:25.6]} 19... Qb6 {[%clk 0:02:05]}
20. Nf5 {[%clk 0:02:18.2]} 20... dxc3 {[%clk 0:01:56.1]} 21. bxc3 {[%clk
0:02:16.6]} 21... b4 {[%clk 0:01:56.4]} 22. axb4 {[%clk 0:01:58.4]} 22... cxb4
{[%clk 0:01:56]} 23. Ne3 {[%clk 0:01:59]} 23... bxc3 {[%clk 0:01:30.2]} 24. Bxc3
{[%clk 0:01:57.9]} 24... Nd4 {[%clk 0:01:30.1]} 25. Bxd4 {[%clk 0:01:57.4]}
25... exd4 {[%clk 0:01:30.2]} 26. Nc4 {[%clk 0:01:58]} 26... Qc5 {[%clk
0:01:28.8]} 27. Ba4 {[%clk 0:01:57.1]} 27... Bc6 {[%clk 0:01:26.4]} 28. Bxc6
{[%clk 0:01:56.4]} 28... Rxc6 {[%clk 0:01:22.6]} 29. Rc1 {[%clk 0:01:54.6]}
29... Nd5 {[%clk 0:01:19.8]} 30. Qd2 {[%clk 0:01:39.3]} 30... Nc3 {[%clk
0:01:14.2]} 31. Rf1 {[%clk 0:00:54.6]} 31... Rd8 {[%clk 0:00:57.6]} 32. Nce5
{[%clk 0:00:42.2]} 32... Re6 {[%clk 0:00:53.7]} 33. Nc4 {[%clk 0:00:41.3]} 33...
Rc6 {[%clk 0:00:52.4]} 34. Nce5 {[%clk 0:00:39.3]} 34... Re6 {[%clk 0:00:51.5]}
35. Nc4 {[%clk 0:00:35]} 35... Rc6 {[%clk 0:00:51]} 1/2-1/2

[Event "*** Titled Tuesday Blitz"]
[Site "Chess.com"]
[Date "2020.05.05"]
[Round "10"]
[White "White_Ghost"]
[Black "kasparicy"]
[Result "0-1"]
[WhiteElo "2436"]
[BlackElo "2325"]
[TimeControl "180+1"]
[EndTime "11:58:04 PDT"]
[Termination "kasparicy won by resignation"]

1. d4 {[%clk 0:03:00.9]} 1... Nf6 {[%clk 0:02:57.1]} 2. c4 {[%clk 0:03:00.9]}
2... g6 {[%clk 0:02:57]} 3. g3 {[%clk 0:03:00.1]} 3... Bg7 {[%clk 0:02:56.6]} 4.
Bg2 {[%clk 0:03:00.3]} 4... d6 {[%clk 0:02:57.5]} 5. Nc3 {[%clk 0:03:00.3]} 5...
c6 {[%clk 0:02:54.6]} 6. Nf3 {[%clk 0:03:00.2]} 6... O-O {[%clk 0:02:55.1]} 7.
O-O {[%clk 0:03:01.1]} 7... d5 {[%clk 0:02:55.5]} 8. cxd5 {[%clk 0:03:00.5]}
8... cxd5 {[%clk 0:02:55.6]} 9. Ne5 {[%clk 0:03:01]} 9... Nc6 {[%clk 0:02:55.8]}
10. Nxc6 {[%clk 0:02:41.4]} 10... bxc6 {[%clk 0:02:56.7]} 11. Qa4 {[%clk
0:02:41.4]} 11... Qb6 {[%clk 0:02:52.6]} 12. e3 {[%clk 0:02:32.9]} 12... Nd7
{[%clk 0:02:36.5]} 13. Qa3 {[%clk 0:02:29.6]} 13... e5 {[%clk 0:02:34.7]} 14.
dxe5 {[%clk 0:02:21]} 14... Nxe5 {[%clk 0:02:35.6]} 15. Na4 {[%clk 0:02:10.7]}
15... Qa5 {[%clk 0:02:29.2]} 16. Rd1 {[%clk 0:01:06.9]} 16... Bg4 {[%clk
0:02:19.8]} 17. Bd2 {[%clk 0:01:00.6]} 17... Qa6 {[%clk 0:02:09]} 18. Bf1 {[%clk
0:00:33.3]} 18... Qc8 {[%clk 0:02:01.2]} 19. Kh1 {[%clk 0:00:18]} 19... Bf3+
{[%clk 0:01:53.5]} 20. Kg1 {[%clk 0:00:16.6]} 20... Qg4 {[%clk 0:01:41.5]} 21.
Rdc1 {[%clk 0:00:14]} 21... Be4 {[%clk 0:01:38.9]} 22. Bg2 {[%clk 0:00:13.8]}
22... Nf3+ {[%clk 0:01:34.7]} 23. Bxf3 {[%clk 0:00:10.2]} 23... Qxf3 {[%clk
0:01:35.6]} 24. Kf1 {[%clk 0:00:10.5]} 24... d4 {[%clk 0:01:32.6]} 25. exd4
{[%clk 0:00:09.1]} 25... Qg2+ {[%clk 0:01:25.1]} 26. Ke2 {[%clk 0:00:08.2]}
26... Rfe8 {[%clk 0:01:25.4]} 27. Be3 {[%clk 0:00:07.6]} 27... Bf3+ {[%clk
0:01:22.3]} 28. Kd2 {[%clk 0:00:07.1]} 28... Bh6 {[%clk 0:01:20.8]} 29. Rf1
{[%clk 0:00:04.7]} 29... Bxe3+ {[%clk 0:01:18.4]} 30. Kc3 {[%clk 0:00:02.7]}
30... Bh6 {[%clk 0:01:16.3]} 31. Rae1 {[%clk 0:00:01.6]} 31... Rxe1 {[%clk
0:01:15.5]} 32. Rxe1 {[%clk 0:00:02.5]} 32... Qxf2 {[%clk 0:01:16]} 33. Rc1
{[%clk 0:00:03.1]} 33... Bxc1 {[%clk 0:01:14]} 0-1

[Event "*** Titled Tuesday Blitz"]
[Site "Chess.com"]
[Date "2020.05.05"]
[Round "10"]
[White "elohunter1999"]
[Black "Mikhail_Biryukov"]
[Result "1-0"]
[WhiteElo "2545"]
[BlackElo "2670"]
[TimeControl "180+1"]
[EndTime "11:58:05 PDT"]
[Termination "elohunter1999 won by resignation"]

1. e4 {[%clk 0:03:00.9]} 1... c5 {[%clk 0:02:58.6]} 2. Nf3 {[%clk 0:03:00.1]}
2... Nc6 {[%clk 0:02:59.5]} 3. d4 {[%clk 0:03:00.3]} 3... cxd4 {[%clk 0:03:00]}
4. Nxd4 {[%clk 0:03:01]} 4... Nf6 {[%clk 0:03:00.4]} 5. Nc3 {[%clk 0:03:00.5]}
5... e5 {[%clk 0:03:00.5]} 6. Ndb5 {[%clk 0:03:00.8]} 6... d6 {[%clk 0:03:00.5]}
7. Bg5 {[%clk 0:03:00.1]} 7... a6 {[%clk 0:03:00.2]} 8. Na3 {[%clk 0:03:00.5]}
8... b5 {[%clk 0:03:00.8]} 9. Bxf6 {[%clk 0:02:59]} 9... gxf6 {[%clk 0:03:01.7]}
10. Nd5 {[%clk 0:02:59.1]} 10... Bg7 {[%clk 0:03:02.3]} 11. Bd3 {[%clk
0:02:57.6]} 11... O-O {[%clk 0:03:02]} 12. Qh5 {[%clk 0:02:49.1]} 12... Ne7
{[%clk 0:03:01.1]} 13. O-O {[%clk 0:02:33.5]} 13... f5 {[%clk 0:03:01]} 14.
Nxe7+ {[%clk 0:02:26]} 14... Qxe7 {[%clk 0:03:00.6]} 15. exf5 {[%clk 0:02:25.6]}
15... e4 {[%clk 0:03:01.5]} 16. Rae1 {[%clk 0:02:21]} 16... d5 {[%clk
0:03:00.4]} 17. c3 {[%clk 0:02:13]} 17... b4 {[%clk 0:02:55.6]} 18. Nc2 {[%clk
0:02:07.2]} 18... bxc3 {[%clk 0:02:54.9]} 19. bxc3 {[%clk 0:02:01.5]} 19... Qf6
{[%clk 0:02:50.7]} 20. Be2 {[%clk 0:01:59.5]} 20... Qxf5 {[%clk 0:02:50.7]} 21.
Qxf5 {[%clk 0:01:51.5]} 21... Bxf5 {[%clk 0:02:51.6]} 22. Nd4 {[%clk 0:01:46.5]}
22... Bg6 {[%clk 0:02:45.2]} 23. Rc1 {[%clk 0:01:40.5]} 23... Rfc8 {[%clk
0:02:44.5]} 24. Rfd1 {[%clk 0:01:39.7]} 24... Rc7 {[%clk 0:02:39]} 25. h4 {[%clk
0:01:33.3]} 25... Bh6 {[%clk 0:02:25.7]} 26. h5 {[%clk 0:01:21.3]} 26... Bxc1
{[%clk 0:02:25.2]} 27. Rxc1 {[%clk 0:01:21.9]} 27... Rac8 {[%clk 0:02:25.4]} 28.
hxg6 {[%clk 0:01:20.6]} 28... hxg6 {[%clk 0:02:24.6]} 29. Bxa6 {[%clk 0:01:18]}
29... Rxc3 {[%clk 0:02:24.5]} 30. Rxc3 {[%clk 0:01:03.7]} 30... Rxc3 {[%clk
0:02:24.3]} 31. Bb7 {[%clk 0:01:01.2]} 31... Rd3 {[%clk 0:02:22.3]} 32. Ne2
{[%clk 0:01:00.4]} 32... f5 {[%clk 0:02:18.6]} 33. a4 {[%clk 0:00:55.4]} 33...
d4 {[%clk 0:02:17.8]} 34. a5 {[%clk 0:00:40.8]} 34... Rd1+ {[%clk 0:02:17.7]}
35. Kh2 {[%clk 0:00:40.5]} 35... d3 {[%clk 0:02:17.9]} 36. Nc3 {[%clk 0:00:35]}
36... Rc1 {[%clk 0:02:16.2]} 37. a6 {[%clk 0:00:16.7]} 37... Rxc3 {[%clk
0:02:14.3]} 38. a7 {[%clk 0:00:16.8]} 38... Ra3 {[%clk 0:02:14.4]} 39. a8=Q+
{[%clk 0:00:17.4]} 39... Rxa8 {[%clk 0:02:14.2]} 40. Bxa8 {[%clk 0:00:18.3]}
40... d2 {[%clk 0:02:14.6]} 41. Bd5+ {[%clk 0:00:18.8]} 41... Kg7 {[%clk
0:02:14.9]} 42. Bb3 {[%clk 0:00:19.7]} 42... Kf6 {[%clk 0:02:11.7]} 43. Kg1
{[%clk 0:00:19.1]} 43... f4 {[%clk 0:02:09.1]} 44. Kf1 {[%clk 0:00:19]} 44... f3
{[%clk 0:02:09.3]} 45. gxf3 {[%clk 0:00:18.2]} 45... exf3 {[%clk 0:02:09.7]} 46.
Bd1 {[%clk 0:00:18.7]} 46... Kf5 {[%clk 0:02:09]} 47. Bxf3 {[%clk 0:00:19.6]}
47... Kf4 {[%clk 0:02:09.3]} 48. Bd1 {[%clk 0:00:20.2]} 48... g5 {[%clk
0:02:09.7]} 49. Kg2 {[%clk 0:00:18.4]} 49... Ke4 {[%clk 0:02:06.5]} 50. Kg3
{[%clk 0:00:18.1]} 50... Kf5 {[%clk 0:02:06.5]} 51. Bc2+ {[%clk 0:00:16.1]}
51... Ke5 {[%clk 0:02:05.3]} 52. Kg4 {[%clk 0:00:16.6]} 52... Kf6 {[%clk
0:02:05.4]} 53. f3 {[%clk 0:00:15.5]} 53... Kf7 {[%clk 0:02:02.1]} 54. Kxg5
{[%clk 0:00:15.6]} 54... Kg7 {[%clk 0:02:02]} 55. Kf4 {[%clk 0:00:15.8]} 55...
Kf6 {[%clk 0:02:02]} 56. Ke3 {[%clk 0:00:16.2]} 1-0

[Event "*** Titled Tuesday Blitz"]
[Site "Chess.com"]
[Date "2020.05.05"]
[Round "10"]
[White "LiemLe"]
[Black "TheBigBoss04"]
[Result "1-0"]
[WhiteElo "2959"]
[BlackElo "2718"]
[TimeControl "180+1"]
[EndTime "11:58:11 PDT"]
[Termination "LiemLe won by resignation"]

1. e4 {[%clk 0:03:00.9]} 1... g6 {[%clk 0:02:59.5]} 2. d4 {[%clk 0:03:00.7]}
2... Bg7 {[%clk 0:02:59.3]} 3. Nc3 {[%clk 0:03:01.3]} 3... c6 {[%clk 0:02:59]}
4. Be3 {[%clk 0:02:58.4]} 4... d5 {[%clk 0:02:59.2]} 5. e5 {[%clk 0:02:56.2]}
5... c5 {[%clk 0:02:59.5]} 6. dxc5 {[%clk 0:02:55.1]} 6... Bxe5 {[%clk
0:02:56.7]} 7. Bd4 {[%clk 0:02:42.9]} 7... Bxd4 {[%clk 0:02:46]} 8. Qxd4 {[%clk
0:02:43.8]} 8... Nf6 {[%clk 0:02:46.1]} 9. O-O-O {[%clk 0:02:41.8]} 9... Nc6
{[%clk 0:02:45.1]} 10. Bb5 {[%clk 0:02:42.1]} 10... O-O {[%clk 0:02:43.5]} 11.
Bxc6 {[%clk 0:02:40.2]} 11... bxc6 {[%clk 0:02:43.2]} 12. Nf3 {[%clk 0:02:41.1]}
12... Bg4 {[%clk 0:02:39.2]} 13. Rd3 {[%clk 0:02:40.6]} 13... Bxf3 {[%clk
0:02:25.9]} 14. Rxf3 {[%clk 0:02:41.5]} 14... Qc7 {[%clk 0:02:18.7]} 15. Re3
{[%clk 0:02:40.3]} 15... Rfe8 {[%clk 0:02:11.5]} 16. Rhe1 {[%clk 0:02:28.6]}
16... Rab8 {[%clk 0:02:02]} 17. g3 {[%clk 0:02:14.5]} 17... a5 {[%clk
0:01:49.5]} 18. a3 {[%clk 0:02:14.8]} 18... Qd7 {[%clk 0:01:42.9]} 19. f3 {[%clk
0:01:55]} 19... Qf5 {[%clk 0:01:25.7]} 20. b3 {[%clk 0:01:35.1]} 20... e5 {[%clk
0:01:20]} 21. Rxe5 {[%clk 0:01:34]} 21... Rxe5 {[%clk 0:01:20.1]} 22. Qxe5
{[%clk 0:01:33.3]} 22... Re8 {[%clk 0:01:18.6]} 23. Qxf5 {[%clk 0:01:30.4]}
23... Rxe1+ {[%clk 0:01:06.5]} 24. Kd2 {[%clk 0:01:30.2]} 24... gxf5 {[%clk
0:01:05.5]} 25. Kxe1 {[%clk 0:01:31.1]} 25... f4 {[%clk 0:01:00.8]} 26. gxf4
{[%clk 0:01:13.7]} 26... Nh5 {[%clk 0:00:43.5]} 27. Ne2 {[%clk 0:01:12.7]} 27...
Kf8 {[%clk 0:00:41.1]} 28. Nd4 {[%clk 0:01:12]} 28... Nxf4 {[%clk 0:00:40.3]}
29. Nxc6 {[%clk 0:01:12.2]} 29... Ne6 {[%clk 0:00:39.7]} 30. b4 {[%clk
0:01:05.3]} 30... a4 {[%clk 0:00:40.4]} 31. Kd2 {[%clk 0:01:02.8]} 31... Ke8
{[%clk 0:00:39.2]} 32. Ke3 {[%clk 0:01:02.3]} 32... Kd7 {[%clk 0:00:39.2]} 33.
Nd4 {[%clk 0:01:01.7]} 33... Ng5 {[%clk 0:00:33]} 34. h4 {[%clk 0:01:00.8]}
34... Nh3 {[%clk 0:00:31.1]} 35. Ne2 {[%clk 0:01:00.6]} 35... Kc6 {[%clk
0:00:28.5]} 36. f4 {[%clk 0:00:56.2]} 36... f5 {[%clk 0:00:22.9]} 37. Kf3 {[%clk
0:00:56.1]} 1-0

[Event "*** Titled Tuesday Blitz"]
[Site "Chess.com"]
[Date "2020.05.05"]
[Round "10"]
[White "eljanov"]
[Black "aakankshachess"]
[Result "1-0"]
[WhiteElo "2898"]
[BlackElo "2499"]
[TimeControl "180+1"]
[EndTime "11:58:12 PDT"]
[Termination "eljanov won by checkmate"]

1. Nf3 {[%clk 0:03:00.9]} 1... Nf6 {[%clk 0:02:59.3]} 2. g3 {[%clk 0:03:00.5]}
2... g6 {[%clk 0:02:59.2]} 3. Bg2 {[%clk 0:03:00.3]} 3... Bg7 {[%clk 0:02:59.8]}
4. c4 {[%clk 0:03:00.5]} 4... d5 {[%clk 0:03:00.1]} 5. cxd5 {[%clk 0:02:59.7]}
5... Nxd5 {[%clk 0:03:00.2]} 6. d4 {[%clk 0:03:00]} 6... Nb6 {[%clk 0:02:58.9]}
7. O-O {[%clk 0:02:59.9]} 7... O-O {[%clk 0:02:59]} 8. Nc3 {[%clk 0:02:59.7]}
8... Nc6 {[%clk 0:02:57.8]} 9. e3 {[%clk 0:02:59.3]} 9... Bg4 {[%clk 0:02:55.4]}
10. h3 {[%clk 0:02:56.9]} 10... Be6 {[%clk 0:02:53.5]} 11. b3 {[%clk 0:02:48.7]}
11... Nd5 {[%clk 0:02:47.8]} 12. Ne4 {[%clk 0:02:38.1]} 12... b6 {[%clk
0:02:44.2]} 13. Bb2 {[%clk 0:02:36.8]} 13... Na5 {[%clk 0:02:39.5]} 14. Qe2
{[%clk 0:02:31.2]} 14... Rc8 {[%clk 0:02:33.9]} 15. Rac1 {[%clk 0:02:29.9]}
15... Nb7 {[%clk 0:02:28.4]} 16. Rfd1 {[%clk 0:02:24.5]} 16... h6 {[%clk
0:02:24.4]} 17. Kh2 {[%clk 0:02:22.2]} 17... Nd6 {[%clk 0:02:24.1]} 18. Ned2
{[%clk 0:02:16]} 18... Nb4 {[%clk 0:02:00]} 19. a3 {[%clk 0:02:11.8]} 19... c5
{[%clk 0:01:42.1]} 20. axb4 {[%clk 0:02:10.5]} 20... cxb4 {[%clk 0:01:42.4]} 21.
e4 {[%clk 0:02:09.2]} 21... Rxc1 {[%clk 0:01:39.7]} 22. Rxc1 {[%clk 0:02:09]}
22... Bd7 {[%clk 0:01:40.1]} 23. Nc4 {[%clk 0:02:04.1]} 23... Bb5 {[%clk
0:01:39.7]} 24. d5 {[%clk 0:02:03.4]} 24... Bxc4 {[%clk 0:01:26.5]} 25. bxc4
{[%clk 0:02:00.5]} 25... Bxb2 {[%clk 0:01:27.1]} 26. Qxb2 {[%clk 0:02:01.1]}
26... Nxe4 {[%clk 0:01:27.6]} 27. Re1 {[%clk 0:01:58.6]} 27... Nc5 {[%clk
0:01:27.3]} 28. Re3 {[%clk 0:01:55.1]} 28... Qd6 {[%clk 0:01:26.5]} 29. Qxb4
{[%clk 0:01:53.9]} 29... a5 {[%clk 0:01:26.3]} 30. Qa3 {[%clk 0:01:50.9]} 30...
Qf6 {[%clk 0:01:23.6]} 31. Qc3 {[%clk 0:01:41.6]} 31... Qd6 {[%clk 0:01:21.2]}
32. Nd4 {[%clk 0:01:41.1]} 32... a4 {[%clk 0:01:09.2]} 33. Nc6 {[%clk
0:01:35.9]} 33... Re8 {[%clk 0:01:07.8]} 34. h4 {[%clk 0:01:31.3]} 34... e6
{[%clk 0:01:07.3]} 35. h5 {[%clk 0:01:28.7]} 35... Qf8 {[%clk 0:00:53.7]} 36.
hxg6 {[%clk 0:01:23.8]} 36... fxg6 {[%clk 0:00:51.7]} 37. Nd4 {[%clk 0:01:18.7]}
37... e5 {[%clk 0:00:50.3]} 38. Ne6 {[%clk 0:01:17.2]} 38... Nxe6 {[%clk
0:00:46.4]} 39. dxe6 {[%clk 0:01:18.1]} 39... Qxf2 {[%clk 0:00:45.9]} 40. Qxe5
{[%clk 0:01:17.8]} 40... Re7 {[%clk 0:00:42.1]} 41. Rf3 {[%clk 0:01:13.1]} 41...
Qc5 {[%clk 0:00:32.1]} 42. Rf8+ {[%clk 0:01:11.3]} 42... Kxf8 {[%clk 0:00:25.1]}
43. Qh8# {[%clk 0:01:12.2]} 1-0

[Event "*** Titled Tuesday Blitz"]
[Site "Chess.com"]
[Date "2020.05.05"]
[Round "10"]
[White "vovachesss"]
[Black "UmutErdemGunduz"]
[Result "1-0"]
[WhiteElo "2557"]
[BlackElo "2409"]
[TimeControl "180+1"]
[EndTime "11:58:19 PDT"]
[Termination "vovachesss won by resignation"]

1. d4 {[%clk 0:03:00.9]} 1... Nf6 {[%clk 0:02:59.2]} 2. Nc3 {[%clk 0:03:01.1]}
2... d5 {[%clk 0:02:55.8]} 3. Bf4 {[%clk 0:03:01.6]} 3... c6 {[%clk 0:02:54.9]}
4. f3 {[%clk 0:02:59.3]} 4... Bf5 {[%clk 0:02:47.7]} 5. g4 {[%clk 0:02:59.3]}
5... Bg6 {[%clk 0:02:47.8]} 6. h4 {[%clk 0:03:00.1]} 6... h6 {[%clk 0:02:47.4]}
7. e3 {[%clk 0:02:59.6]} 7... e6 {[%clk 0:02:47.3]} 8. Bd3 {[%clk 0:03:00.1]}
8... Bxd3 {[%clk 0:02:46.2]} 9. Qxd3 {[%clk 0:03:01]} 9... Bd6 {[%clk
0:02:46.8]} 10. Nge2 {[%clk 0:03:01.6]} 10... Qe7 {[%clk 0:02:43.6]} 11. O-O-O
{[%clk 0:03:01.5]} 11... Nbd7 {[%clk 0:02:43.6]} 12. Bxd6 {[%clk 0:02:34.3]}
12... Qxd6 {[%clk 0:02:44.5]} 13. e4 {[%clk 0:02:35.2]} 13... dxe4 {[%clk
0:02:38]} 14. fxe4 {[%clk 0:02:26.5]} 14... e5 {[%clk 0:02:27.9]} 15. g5 {[%clk
0:02:06.8]} 15... Ng4 {[%clk 0:02:26]} 16. Qg3 {[%clk 0:02:04.7]} 16... h5
{[%clk 0:02:21.6]} 17. d5 {[%clk 0:01:58.9]} 17... O-O-O {[%clk 0:02:18.9]} 18.
dxc6 {[%clk 0:01:56.7]} 18... Qxc6 {[%clk 0:02:18.8]} 19. Nd5 {[%clk 0:01:57.6]}
19... Kb8 {[%clk 0:02:14.8]} 20. Rhf1 {[%clk 0:01:45.9]} 20... f6 {[%clk
0:02:08.6]} 21. Nd4 {[%clk 0:01:42.1]} 21... Qa4 {[%clk 0:01:52.7]} 22. Kb1
{[%clk 0:01:39.7]} 22... Nb6 {[%clk 0:01:40]} 23. Ne6 {[%clk 0:01:36.8]} 23...
Rc8 {[%clk 0:01:25.3]} 24. Qb3 {[%clk 0:01:14.5]} 24... Qxb3 {[%clk 0:01:10.7]}
25. axb3 {[%clk 0:01:14.4]} 25... Nxd5 {[%clk 0:01:11.4]} 26. exd5 {[%clk
0:01:04.1]} 26... Ne3 {[%clk 0:01:11.8]} 27. Nxg7 {[%clk 0:01:04.2]} 27... Nxd1
{[%clk 0:01:05.4]} 28. Rxd1 {[%clk 0:01:03.6]} 28... fxg5 {[%clk 0:01:05.3]} 29.
hxg5 {[%clk 0:01:04.5]} 29... Kc7 {[%clk 0:01:00.1]} 30. g6 {[%clk 0:00:55.8]}
30... h4 {[%clk 0:00:55]} 31. c4 {[%clk 0:00:52.4]} 31... b6 {[%clk 0:00:53.4]}
32. Ne6+ {[%clk 0:00:51.6]} 32... Kd6 {[%clk 0:00:53.3]} 33. g7 {[%clk
0:00:52.5]} 33... Rh6 {[%clk 0:00:34.6]} 34. Nf8 {[%clk 0:00:50.6]} 34... Rg6
{[%clk 0:00:18.2]} 35. Nxg6 {[%clk 0:00:50.7]} 35... Rg8 {[%clk 0:00:19.1]} 36.
Nxh4 {[%clk 0:00:51.4]} 36... Rxg7 {[%clk 0:00:19.5]} 37. Nf5+ {[%clk
0:00:52.1]} 1-0